fUSD/lending_fUSD_20260526
["ID","MTS","AMOUNT","RATE_DAILY","PERIOD"]
[423058427,1779805850000,-894.55274135,0.0003526,2]
[423058429,1779805850000,-302.1844563,0.0003526,2]
[423058431,1779805850000,-300.96252262,0.0003526,2]
[423058461,1779805850000,-300.0,0.0003526,2]
[423058459,1779805850000,-726.99445071,0.0003526,2]
[423058469,1779805850000,-1148.70755237,0.0003526,2]
[423058467,1779805850000,-950.21744792,0.0003526,2]
[423058468,1779805850000,-300.09,0.0003526,2]
[423058470,1779805850000,-309.98994128,0.0003526,2]
[423058473,1779805850000,-464.43646992,0.0003526,2]
[423058471,1779805850000,-594.73329586,0.0003526,2]
[423058472,1779805850000,-300.0,0.0003526,2]
[423058478,1779805850000,-310.24516055,0.0003526,2]
[423058479,1779805850000,-300.0,0.0003526,2]
[423058476,1779805850000,-300.0,0.0003526,2]
[423058477,1779805850000,-484.71261076,0.0003526,2]
[423058474,1779805850000,-396.979931,0.0003526,2]
[423058475,1779805850000,-452.48121198,0.0003526,2]
[423058480,1779805850000,-1096.16608281,0.0003526,2]
[423058482,1779805850000,-493.32888988,0.0003526,2]
[423058484,1779805850000,-300.0,0.0003526,2]
[423058483,1779805850000,-605.24124213,0.0003526,2]
[423058492,1779805850000,-152.0,0.00035501,7]
[423058487,1779805850000,-894.55274135,0.0003526,2]
[423058486,1779805850000,-1068.30020172,0.0003526,2]
[423058491,1779805850000,-6431.14496534,0.00035376,2]
[423058481,1779805850000,-300.0,0.0003526,2]
[423058485,1779805850000,-528.42557,0.0003526,2]
[423058490,1779805850000,-300.0,0.0003526,2]
[423058439,1779805850000,-1148.70755237,0.0003526,2]
[423058489,1779805850000,-302.1844563,0.0003526,2]
[423058493,1779805850000,-196.0,0.00035575,30]
[423058455,1779805850000,-300.0,0.0003526,2]
[423058456,1779805850000,-528.42557,0.0003526,2]
[423058488,1779805850000,-726.99445071,0.0003526,2]
[423058463,1779805850000,-1263.82495173,0.0003526,2]
[423058462,1779805850000,-300.96252262,0.0003526,2]
[423058430,1779805850000,-300.0,0.0003526,2]
[423058432,1779805850000,-300.0,0.0003526,2]
[423058436,1779805850000,-865.53028801,0.0003526,2]
[423058434,1779805850000,-344.4170137,0.0003526,2]
[423058433,1779805850000,-1263.82495173,0.0003526,2]
[423058437,1779805850000,-950.21744792,0.0003526,2]
[423058435,1779805850000,-527.56699294,0.0003526,2]
[423058440,1779805850000,-309.98994128,0.0003526,2]
[423058444,1779805850000,-578.19877315,0.0003526,2]
[423058441,1779805850000,-594.73329586,0.0003526,2]
[423058452,1779805850000,-300.0,0.0003526,2]
[423058443,1779805850000,-464.43646992,0.0003526,2]
[423058447,1779805850000,-300.0,0.0003526,2]
[423058438,1779805850000,-300.09,0.0003526,2]
[423058446,1779805850000,-520.61017099,0.0003526,2]
[423058442,1779805850000,-300.0,0.0003526,2]
[423058460,1779805850000,-302.1844563,0.0003526,2]
[423058458,1779805850000,-894.55274135,0.0003526,2]
[423058464,1779805850000,-344.4170137,0.0003526,2]
[423058453,1779805850000,-493.32888988,0.0003526,2]
[423058466,1779805850000,-865.53028801,0.0003526,2]
[423058457,1779805850000,-1068.30020172,0.0003526,2]
[423058454,1779805850000,-605.24124213,0.0003526,2]
[423058450,1779805850000,-300.0,0.0003526,2]
[423058445,1779805850000,-452.48121198,0.0003526,2]
[423058449,1779805850000,-310.24516055,0.0003526,2]
[423058448,1779805850000,-484.71261076,0.0003526,2]
[423058451,1779805850000,-1096.16608281,0.0003526,2]
[423058465,1779805850000,-527.56699294,0.0003526,2]
[423058532,1779805851000,-1712.93078311,0.00036314,2]
[423058531,1779805851000,-200.0,0.00036314,2]
[423058533,1779805851000,-552.6029531,0.00036399,120]
[423058535,1779805851000,-45335.0,0.000364,30]
[423058524,1779805851000,-600.0,0.00036,120]
[423058523,1779805851000,-500.0,0.00036,120]
[423058521,1779805851000,-3636.0,0.00035953,2]
[423058525,1779805851000,-400.0,0.00036,120]
[423058529,1779805851000,-285.7,0.00036153,30]
[423058551,1779805851000,-165.0,0.00037,120]
[423058534,1779805851000,-500.0,0.00036399,30]
[423058528,1779805851000,-200.0,0.000361,30]
[423058543,1779805851000,-621.78829552,0.0003686,2]
[423058537,1779805851000,-450.55,0.00036615,7]
[423058541,1779805851000,-450.55,0.000368,7]
[423058540,1779805851000,-302.79,0.0003676,120]
[423058536,1779805851000,-6431.14496534,0.00036606,2]
[423058538,1779805851000,-1354.45,0.00036642,30]
[423058546,1779805851000,-150.0,0.0003688,2]
[423058544,1779805851000,-200.0,0.00036862,2]
[423058547,1779805851000,-200.0,0.0003691,30]
[423058545,1779805851000,-1776.30922209,0.00036862,2]
[423058550,1779805851000,-772.38,0.00036986,7]
[423058549,1779805851000,-450.55,0.00036986,7]
[423058548,1779805851000,-152.0,0.00036933,4]
[423058526,1779805851000,-188.30999285,0.00036,120]
[423058539,1779805851000,-2000.0,0.000367,7]
[423058522,1779805851000,-6062.0,0.00035953,2]
[423058509,1779805851000,-176.89,0.00035616,2]
[423058527,1779805851000,-166.24505427,0.00036,120]
[423058498,1779805851000,-215.0,0.00035576,30]
[423058500,1779805851000,-165.0,0.00035576,30]
[423058505,1779805851000,-500.0,0.00035616,7]
[423058496,1779805851000,-151.0,0.00035576,30]
[423058501,1779805851000,-152.0,0.00035576,30]
[423058504,1779805851000,-165.22160425,0.00035616,60]
[423058499,1779805851000,-166.0,0.00035576,30]
[423058494,1779805851000,-318.0,0.00035575,30]
[423058495,1779805851000,-236.0,0.00035575,30]
[423058502,1779805851000,-210.0,0.00035576,30]
[423058497,1779805851000,-151.0,0.00035576,30]
[423058503,1779805851000,-152.0,0.00035578,7]
[423058530,1779805851000,-302.79,0.0003621,110]
[423058507,1779805851000,-500.0,0.00035616,7]
[423058518,1779805851000,-107276.3771839,0.00035893,2]
[423058506,1779805851000,-336.70343877,0.00035616,7]
[423058508,1779805851000,-500.0,0.00035616,7]
[423058510,1779805851000,-152.0,0.00035639,7]
[423058511,1779805851000,-152.0,0.00035639,7]
[423058513,1779805851000,-444.0,0.0003571,120]
[423058515,1779805851000,-200.0,0.00035766,2]
[423058516,1779805851000,-1651.81367706,0.00035766,2]
[423058514,1779805851000,-269.41,0.00035711,120]
[423058512,1779805851000,-302.79,0.0003567,80]
[423058519,1779805851000,-360.5927974,0.00035903,2]
[423058520,1779805851000,-1225.0,0.00035953,2]
[423058517,1779805851000,-230.24578172,0.00035853,2]
[423058553,1779805851000,-500.0,0.00037087,38]
[423058542,1779805851000,-670.58624095,0.0003686,2]
[423058555,1779805851000,-450.55,0.00037172,7]
[423058585,1779805851000,-285.7,0.00038125,30]
[423058596,1779805851000,-300.0,0.0003851,30]
[423058597,1779805851000,-200.0,0.00038524,6]
[423058588,1779805851000,-150.0,0.00038356,60]
[423058589,1779805851000,-285.97279422,0.00038356,2]
[423058590,1779805851000,-1548.0,0.00038356,30]
[423058587,1779805851000,-500.0,0.00038199,44]
[423058595,1779805851000,-2070.16613092,0.00038506,2]
[423058591,1779805851000,-302.79,0.0003838,105]
[423058594,1779805851000,-2650.0,0.000385,120]
[423058592,1779805851000,-152.0,0.00038483,30]
[423058593,1779805851000,-1078.84961858,0.000385,120]
[423058586,1779805851000,-439.16161702,0.00038166,10]
[423058598,1779805851000,-200.0,0.00038575,6]
[423058602,1779805851000,-10357.27996137,0.00038799,7]
[423058603,1779805851000,-45335.0,0.000388,30]
[423058600,1779805851000,-150.0,0.00038724,2]
[423058601,1779805851000,-6840.28095052,0.00038751,15]
[423058606,1779805851000,-238.96,0.000389,120]
[423058608,1779805851000,-15918.21402603,0.000389,2]
[423058607,1779805851000,-250.39,0.000389,120]
[423058605,1779805851000,-195.73566894,0.00038881,120]
[423058609,1779805851000,-1548.0,0.00038904,30]
[423058611,1779805851000,-173.35122019,0.00038929,120]
[423058610,1779805851000,-302.79,0.0003892,116]
[423058552,1779805851000,-500.0,0.00037085,120]
[423058599,1779805851000,-1548.0,0.0003863,30]
[423058579,1779805851000,-1000.0,0.00038,120]
[423058604,1779805851000,-173.34,0.00038879,120]
[423058581,1779805851000,-4155.85,0.000381,2]
[423058576,1779805851000,-5800.0,0.00037983,2]
[423058556,1779805851000,-302.79,0.000373,60]
[423058554,1779805851000,-154.11204312,0.00037125,120]
[423058557,1779805851000,-200.0,0.0003741,2]
[423058559,1779805851000,-500.0,0.00037412,30]
[423058567,1779805851000,-158.820865,0.00037412,7]
[423058569,1779805851000,-45335.0,0.000376,30]
[423058570,1779805851000,-200.0,0.0003771,30]
[423058558,1779805851000,-1842.0326633,0.0003741,2]
[423058560,1779805851000,-226.68796,0.00037412,7]
[423058561,1779805851000,-226.68796,0.00037412,7]
[423058564,1779805851000,-158.820865,0.00037412,7]
[423058562,1779805851000,-226.68796,0.00037412,7]
[423058568,1779805851000,-360.5927974,0.00037485,2]
[423058563,1779805851000,-226.68796,0.00037412,7]
[423058578,1779805851000,-5800.0,0.00038,2]
[423058565,1779805851000,-158.820865,0.00037412,7]
[423058583,1779805851000,-1264.5,0.000381,2]
[423058580,1779805851000,-1354.45,0.00038068,30]
[423058577,1779805851000,-5800.0,0.00037992,2]
[423058584,1779805851000,-364.51,0.000381,2]
[423058582,1779805851000,-434.8,0.000381,31]
[423058575,1779805851000,-1910.18787185,0.00037958,2]
[423058574,1779805851000,-207.54978746,0.00037958,2]
[423058573,1779805851000,-302.79,0.0003784,86]
[423058571,1779805851000,-1366.68712307,0.0003783,2]
[423058566,1779805851000,-158.820865,0.00037412,7]
[423058572,1779805851000,-6431.14496534,0.00037836,2]
[423058631,1779805852000,-1100.0,0.00038986,30]
[423058632,1779805852000,-1100.0,0.00038986,30]
[423058638,1779805852000,-1100.0,0.00038986,30]
[423058637,1779805852000,-1100.0,0.00038986,30]
[423058648,1779805852000,-1100.0,0.00038986,30]
[423058647,1779805852000,-1100.0,0.00038986,30]
[423058636,1779805852000,-1100.0,0.00038986,30]
[423058639,1779805852000,-1100.0,0.00038986,30]
[423058640,1779805852000,-1100.0,0.00038986,30]
[423058642,1779805852000,-1100.0,0.00038986,30]
[423058643,1779805852000,-1100.0,0.00038986,30]
[423058641,1779805852000,-1100.0,0.00038986,30]
[423058645,1779805852000,-1100.0,0.00038986,30]
[423058644,1779805852000,-1100.0,0.00038986,30]
[423058652,1779805852000,-1100.0,0.00038986,30]
[423058655,1779805852000,-1100.0,0.00038986,30]
[423058633,1779805852000,-1100.0,0.00038986,30]
[423058656,1779805852000,-1100.0,0.00038986,30]
[423058646,1779805852000,-1100.0,0.00038986,30]
[423058635,1779805852000,-1100.0,0.00038986,30]
[423058622,1779805852000,-1100.0,0.00038986,30]
[423058628,1779805852000,-1100.0,0.00038986,30]
[423058660,1779805852000,-1100.0,0.00038986,30]
[423058613,1779805852000,-238.96,0.0003895,120]
[423058623,1779805852000,-1100.0,0.00038986,30]
[423058618,1779805852000,-250.0,0.00038959,31]
[423058612,1779805852000,-500.0,0.00038931,120]
[423058614,1779805852000,-1225.0,0.00038953,2]
[423058617,1779805852000,-250.0,0.00038959,30]
[423058615,1779805852000,-3636.0,0.00038953,2]
[423058634,1779805852000,-1100.0,0.00038986,30]
[423058616,1779805852000,-6053.0,0.00038953,2]
[423058621,1779805852000,-1100.0,0.00038986,30]
[423058619,1779805852000,-500.0,0.00038986,30]
[423058624,1779805852000,-1100.0,0.00038986,30]
[423058626,1779805852000,-1100.0,0.00038986,30]
[423058627,1779805852000,-1100.0,0.00038986,30]
[423058625,1779805852000,-1100.0,0.00038986,30]
[423058630,1779805852000,-1100.0,0.00038986,30]
[423058629,1779805852000,-1100.0,0.00038986,30]
[423058620,1779805852000,-1100.0,0.00038986,30]
[423058650,1779805852000,-1100.0,0.00038986,30]
[423058649,1779805852000,-1100.0,0.00038986,30]
[423058651,1779805852000,-1100.0,0.00038986,30]
[423058676,1779805852000,-177.31,0.00039,30]
[423058684,1779805852000,-2000.0,0.00039,120]
[423058675,1779805852000,-185.49,0.00039,120]
[423058681,1779805852000,-151.0,0.00039,120]
[423058685,1779805852000,-614.07880195,0.00039,6]
[423058679,1779805852000,-2000.0,0.00039,60]
[423058682,1779805852000,-1516.68,0.00039,7]
[423058683,1779805852000,-1000.0,0.00039,30]
[423058687,1779805852000,-19679.32259358,0.00039,2]
[423058688,1779805852000,-2000.0,0.00039,120]
[423058689,1779805852000,-495.72378646,0.00039,30]
[423058690,1779805852000,-118589.21278274,0.00039,2]
[423058692,1779805852000,-374.32106463,0.00039,2]
[423058691,1779805852000,-3822.69912838,0.00039,2]
[423058694,1779805852000,-503.0,0.00031841,9]
[423058693,1779805852000,-3194.70065106,0.00039,2]
[423058696,1779805852000,-437.84924442,0.00039,2]
[423058654,1779805852000,-1100.0,0.00038986,30]
[423058697,1779805852000,-53075.23389199,0.00039,2]
[423058686,1779805852000,-1386.29063791,0.00039,120]
[423058680,1779805852000,-5395.32946448,0.00039,4]
[423058695,1779805852000,-552.76,0.00039,2]
[423058678,1779805852000,-200000.0,0.00039,2]
[423058658,1779805852000,-1100.0,0.00038986,30]
[423058657,1779805852000,-1100.0,0.00038986,30]
[423058653,1779805852000,-1100.0,0.00038986,30]
[423058659,1779805852000,-1100.0,0.00038986,30]
[423058672,1779805852000,-238.96,0.00039,120]
[423058664,1779805852000,-1100.0,0.00038986,30]
[423058661,1779805852000,-1100.0,0.00038986,30]
[423058670,1779805852000,-300.0,0.00038999,10]
[423058662,1779805852000,-1100.0,0.00038986,30]
[423058663,1779805852000,-1100.0,0.00038986,30]
[423058665,1779805852000,-530.0,0.00038986,30]
[423058674,1779805852000,-145907.09080767,0.00039,2]
[423058671,1779805852000,-666.0,0.00038999,30]
[423058669,1779805852000,-666.0,0.00038999,30]
[423058677,1779805852000,-157.75,0.00039,30]
[423058666,1779805852000,-500.0,0.00038999,30]
[423058673,1779805852000,-208.88478316,0.00039,120]
[423058668,1779805852000,-300.0,0.00038999,10]
[423058667,1779805852000,-500.0,0.00038999,30]
[423058711,1779806135000,248.824,0.00028081,120]
[423058713,1779806272000,-250.0,0.00014,2]
[423058715,1779806384000,156.34,0.00013883,2]
[423058716,1779806426000,500.0,0.00014999,2]
[423058717,1779806454000,500.0,0.00014999,2]
[423058718,1779806539000,163.96,0.00027572,120]
[423058719,1779806543000,500.0,0.00014999,2]
[423058720,1779806565000,500.0,0.00014999,2]
[423058721,1779806580000,500.0,0.00014999,2]
[423058722,1779806621000,500.0,0.00014999,2]
[423058730,1779806726000,500.0,0.00014999,2]
[423058775,1779806883000,190.86,0.00025359,120]
[423058836,1779807032000,-943.18213995,0.0002,2]
[423058835,1779807032000,-1257.5761866,0.0002,2]
[423058834,1779807032000,-257.0,0.0002,2]
[423058837,1779807032000,-471.59106998,0.0002,2]
[423058839,1779807032000,-471.59106996,0.0002,2]
[423058838,1779807032000,-471.59106996,0.0002,2]
[423058840,1779807032000,-471.59106996,0.0002,2]
[423058844,1779807032000,-155.0,0.00021,2]
[423058845,1779807032000,-579.0,0.00021,2]
[423058843,1779807032000,-943.18213993,0.000209,2]
[423058841,1779807032000,-297.1,0.00020381,2]
[423058842,1779807032000,-156.34,0.00020825,2]
[423058847,1779807032000,-175.0,0.00021,2]
[423058848,1779807032000,-151.0,0.00021,2]
[423058850,1779807032000,-152.0,0.00021,2]
[423058849,1779807032000,-151.0,0.00021,2]
[423058855,1779807032000,-500.0,0.000219,2]
[423058851,1779807032000,-159.0,0.00021,2]
[423058852,1779807032000,-228.0,0.00021,2]
[423058853,1779807032000,-257.0,0.00021,2]
[423058854,1779807032000,-951.0,0.0002188,2]
[423058859,1779807032000,-579.0,0.00022,2]
[423058833,1779807032000,-228.0,0.0002,2]
[423058861,1779807032000,-175.0,0.00022,2]
[423058846,1779807032000,-158.0,0.00021,2]
[423058829,1779807032000,-151.0,0.0002,2]
[423058802,1779807032000,-226.54843932,0.00015577,7]
[423058831,1779807032000,-152.0,0.0002,2]
[423058857,1779807032000,-162.0,0.00022,2]
[423058799,1779807032000,-156.34,0.00015272,2]
[423058806,1779807032000,-27.40284659,0.00018048,2]
[423058801,1779807032000,-683.57027379,0.00015477,2]
[423058804,1779807032000,-156.34,0.0001666,2]
[423058803,1779807032000,-297.1,0.00016438,2]
[423058805,1779807032000,-128.93715341,0.00018048,2]
[423058808,1779807032000,-458.682367,0.00019339,2]
[423058807,1779807032000,-297.1,0.0001841,2]
[423058810,1779807032000,-300.0,0.00019998,2]
[423058811,1779807032000,-318.10836627,0.00019998,2]
[423058809,1779807032000,-156.34,0.00019437,2]
[423058828,1779807032000,-151.0,0.0002,2]
[423058812,1779807032000,-258.87161287,0.00019998,2]
[423058815,1779807032000,-198.0,0.00019999,2]
[423058816,1779807032000,-51.81713844,0.00019999,2]
[423058817,1779807032000,-407.0,0.00019999,2]
[423058813,1779807032000,-623.02002086,0.00019998,2]
[423058822,1779807032000,-96.07564746,0.0002,2]
[423058821,1779807032000,-58.92435254,0.0002,2]
[423058818,1779807032000,-342.86699056,0.00019999,2]
[423058819,1779807032000,-398.315871,0.00019999,2]
[423058824,1779807032000,-579.0,0.0002,2]
[423058825,1779807032000,-158.0,0.0002,2]
[423058832,1779807032000,-159.0,0.0002,2]
[423058826,1779807032000,-175.0,0.0002,2]
[423058814,1779807032000,-300.0,0.00019998,2]
[423058863,1779807032000,-151.0,0.00022,2]
[423058876,1779807032000,-579.0,0.00023,2]
[423058866,1779807032000,-173.0,0.00022,2]
[423058899,1779807032000,-165.0,0.00025,2]
[423058903,1779807032000,-7981.96,0.00025323,2]
[423058902,1779807032000,-500.0,0.00025082,2]
[423058901,1779807032000,-261.80519065,0.00025,2]
[423058904,1779807032000,-262.91,0.00025332,2]
[423058905,1779807032000,-1000.0,0.00025346,2]
[423058907,1779807032000,-5000.0,0.00025355,2]
[423058906,1779807032000,-150.0,0.00025348,2]
[423058908,1779807032000,-258.07,0.00025359,2]
[423058910,1779807032000,-4987.66,0.00025548,2]
[423058909,1779807032000,-500.0,0.00025372,3]
[423058900,1779807032000,-239.0,0.00025,2]
[423058912,1779807032000,-7367.72,0.00025723,7]
[423058917,1779807032000,-162.69,0.00026653,2]
[423058916,1779807032000,-213.15,0.00026433,2]
[423058913,1779807032000,-500.0,0.00025914,2]
[423058915,1779807032000,-156.34,0.00026378,2]
[423058918,1779807032000,-500.0,0.00026746,3]
[423058920,1779807032000,-1482.78,0.000268,2]
[423058921,1779807032000,-500.0,0.00026931,2]
[423058923,1779807032000,-284.58,0.00027222,2]
[423058919,1779807032000,-1731.16,0.000268,2]
[423058922,1779807032000,-215.42269777,0.00027,3]
[423058924,1779807032000,-1014.10336618,0.00027397,2]
[423058911,1779807032000,-1000.0,0.000256,2]
[423058898,1779807032000,-189.0,0.00025,2]
[423058914,1779807032000,-297.1,0.00026296,2]
[423058896,1779807032000,-156.34,0.0002499,2]
[423058897,1779807032000,-582.0020006,0.00025,2]
[423058865,1779807032000,-152.0,0.00022,2]
[423058868,1779807032000,-228.0,0.00022,2]
[423058872,1779807032000,-500.0,0.00022,2]
[423058873,1779807032000,-156.34,0.00022213,2]
[423058870,1779807032000,-257.0,0.00022,2]
[423058877,1779807032000,-175.0,0.00023,2]
[423058874,1779807032000,-503.56250299,0.00022274,2]
[423058878,1779807032000,-151.0,0.00023,2]
[423058875,1779807032000,-297.1,0.00022353,2]
[423058879,1779807032000,-151.0,0.00023,2]
[423058880,1779807032000,-152.0,0.00023,2]
[423058883,1779807032000,-250.0,0.00023,20]
[423058864,1779807032000,-151.0,0.00022,2]
[423058882,1779807032000,-257.0,0.00023,2]
[423058895,1779807032000,-171.41,0.00024658,2]
[423058881,1779807032000,-228.0,0.00023,2]
[423058893,1779807032000,-500.0,0.0002421,2]
[423058889,1779807032000,-165.0,0.00024,2]
[423058891,1779807032000,-228.0,0.00024,2]
[423058892,1779807032000,-257.0,0.00024,2]
[423058894,1779807032000,-297.1,0.00024324,2]
[423058887,1779807032000,-175.0,0.00024,2]
[423058888,1779807032000,-165.0,0.00024,2]
[423058885,1779807032000,-156.34,0.00023602,2]
[423058886,1779807032000,-579.0,0.00024,2]
[423058890,1779807032000,-152.0,0.00024,2]
[423058947,1779807033000,-500.0,0.00028411,5]
[423058952,1779807033000,-350.0,0.00029,120]
[423058949,1779807033000,-150.0,0.00028897,2]
[423058948,1779807033000,-165.47,0.00028414,7]
[423058950,1779807033000,-611.999999,0.00029,2]
[423058953,1779807033000,-200.0,0.00029,2]
[423058951,1779807033000,-165.48,0.00029,2]
[423058954,1779807033000,-5417.08,0.00029,7]
[423058959,1779807033000,-1102.95281433,0.00029171,2]
[423058955,1779807033000,-213.15,0.00029076,2]
[423058958,1779807033000,-1000.0,0.00029171,2]
[423058957,1779807033000,-1000.0,0.00029171,2]
[423058944,1779807033000,-2313.19,0.00028203,2]
[423058960,1779807033000,-500.0,0.00029243,6]
[423058961,1779807033000,-1500.0,0.000293,7]
[423058963,1779807033000,-24674.32830728,0.00029483,2]
[423058962,1779807033000,-1834.5906052,0.00029482,2]
[423058956,1779807033000,-1897.04718567,0.00029171,2]
[423058946,1779807033000,-251.79,0.000284,14]
[423058941,1779807033000,-200.38022994,0.0002808,2]
[423058943,1779807033000,-1482.78,0.000282,2]
[423058965,1779807033000,-13815.96900411,0.00029483,2]
[423058925,1779807033000,-453.11663382,0.00027397,2]
[423058929,1779807033000,-6573.16,0.0002742,7]
[423058927,1779807033000,-1395.24,0.00027416,2]
[423058926,1779807033000,-5249.02,0.00027397,10]
[423058928,1779807033000,-215.42269777,0.0002742,7]
[423058931,1779807033000,-150.0,0.00027521,2]
[423058936,1779807033000,-1731.16,0.000278,2]
[423058930,1779807033000,-209.21338479,0.0002742,3]
[423058934,1779807033000,-300.0,0.00027725,2]
[423058933,1779807033000,-500.0,0.00027578,4]
[423058935,1779807033000,-156.34,0.00027767,2]
[423058937,1779807033000,-1482.78,0.000278,2]
[423058938,1779807033000,-160.6,0.00027823,30]
[423058939,1779807033000,-165.47,0.00027828,30]
[423058940,1779807033000,-200.0,0.0002808,2]
[423058942,1779807033000,-1731.16,0.000282,2]
[423058945,1779807033000,-297.1,0.00028267,2]
[423058932,1779807033000,-171.41,0.00027573,2]
[423058964,1779807033000,-19997.12018861,0.00029483,2]
[423058968,1779807033000,-159.0,0.00029583,30]
[423058990,1779807033000,-500.0,0.00029863,2]
[423058992,1779807033000,-446.76515388,0.00029863,2]
[423058991,1779807033000,-500.0,0.00029863,2]
[423058993,1779807033000,-500.0,0.00029863,2]
[423059000,1779807033000,-500.0,0.00029863,2]
[423058996,1779807033000,-500.0,0.00029863,2]
[423058998,1779807033000,-500.0,0.00029863,2]
[423058995,1779807033000,-500.0,0.00029863,2]
[423058994,1779807033000,-500.0,0.00029863,2]
[423058999,1779807033000,-500.0,0.00029863,2]
[423059002,1779807033000,-500.0,0.00029863,2]
[423059001,1779807033000,-500.0,0.00029863,2]
[423059003,1779807033000,-500.0,0.00029863,2]
[423059005,1779807033000,-284.7991022,0.00029863,2]
[423059004,1779807033000,-500.0,0.00029863,2]
[423059006,1779807033000,-500.0,0.00029863,2]
[423058966,1779807033000,-1000.0,0.00029498,51]
[423058988,1779807033000,-265.55403251,0.00029863,2]
[423058989,1779807033000,-500.0,0.00029863,2]
[423058997,1779807033000,-500.0,0.00029863,2]
[423058984,1779807033000,-150.0,0.00029863,2]
[423058969,1779807033000,-228.0,0.00029583,30]
[423058982,1779807033000,-6808.7217,0.00029763,2]
[423058970,1779807033000,-158.0,0.00029583,30]
[423058974,1779807033000,-157.0,0.00029583,30]
[423058972,1779807033000,-579.0,0.00029583,30]
[423058973,1779807033000,-158.0,0.00029583,30]
[423058971,1779807033000,-155.0,0.00029583,30]
[423058975,1779807033000,-175.0,0.00029583,30]
[423058976,1779807033000,-151.0,0.00029583,30]
[423058967,1779807033000,-1100.38972464,0.00029582,15]
[423058978,1779807033000,-157.0,0.00029583,30]
[423058979,1779807033000,-152.0,0.00029583,30]
[423058981,1779807033000,-215.42269777,0.00029679,2]
[423058980,1779807033000,-257.0,0.00029583,30]
[423058983,1779807033000,-500.0,0.00029862,2]
[423058985,1779807033000,-150.0,0.00029863,2]
[423058986,1779807033000,-150.0,0.00029863,2]
[423058977,1779807033000,-151.0,0.00029583,30]
[423058987,1779807033000,-190.08642971,0.00029863,2]
[423059045,1779807034000,-200.26828773,0.00030137,40]
[423059044,1779807034000,-1000.0,0.00030136,40]
[423059043,1779807034000,-500.0,0.00030075,7]
[423059042,1779807034000,-572.072516,0.00029994,120]
[423059041,1779807034000,-391.57239913,0.00029863,2]
[423059039,1779807034000,-500.0,0.00029863,2]
[423059037,1779807034000,-500.0,0.00029863,2]
[423059038,1779807034000,-500.0,0.00029863,2]
[423059047,1779807034000,-297.1,0.00030239,2]
[423059035,1779807034000,-500.0,0.00029863,2]
[423059040,1779807034000,-500.0,0.00029863,2]
[423059048,1779807034000,-150.0,0.00030341,2]
[423059058,1779807034000,-158.0,0.00030583,30]
[423059046,1779807034000,-1439.999999,0.000302,2]
[423059051,1779807034000,-171.41,0.00030488,2]
[423059050,1779807034000,-152.72351871,0.0003036,7]
[423059052,1779807034000,-1834.59060515,0.00030547,2]
[423059053,1779807034000,-159.0,0.00030583,30]
[423059054,1779807034000,-228.0,0.00030583,30]
[423059055,1779807034000,-158.0,0.00030583,30]
[423059056,1779807034000,-155.0,0.00030583,30]
[423059057,1779807034000,-579.0,0.00030583,30]
[423059059,1779807034000,-157.0,0.00030583,30]